[Event "Early-Titled-Tuesday-Blitz-October-10-2023"]
[Site "Chess.com"]
[Date "2023.10.10"]
[Round "5"]
[White "ploxoi"]
[Black "FoxOnTheRun97"]
[Result "1-0"]
[WhiteElo "2442"]
[BlackElo "2537"]
[TimeControl "180+1"]
[EndTime "8:53:22 PDT"]
[Termination "ploxoi won by resignation"]

1. d4 {[%clk 0:03:00.9]} 1... Nf6 {[%clk 0:02:59.7]} 2. c4 {[%clk 0:03:01.1]}
2... e6 {[%clk 0:02:59.4]} 3. g3 {[%clk 0:03:01.6]} 3... d5 {[%clk 0:02:59.1]}
4. Nf3 {[%clk 0:03:01.2]} 4... Bb4+ {[%clk 0:02:59]} 5. Bd2 {[%clk 0:03:00.7]}
5... Be7 {[%clk 0:02:59.2]} 6. Bg2 {[%clk 0:03:00.9]} 6... O-O {[%clk
0:02:58.7]} 7. O-O {[%clk 0:03:00.8]} 7... c6 {[%clk 0:02:57.8]} 8. Qc2 {[%clk
0:03:01.3]} 8... b6 {[%clk 0:02:57.8]} 9. Rd1 {[%clk 0:03:01.2]} 9... Ba6 {[%clk
0:02:56.5]} 10. b3 {[%clk 0:02:59.7]} 10... b5 {[%clk 0:02:55.1]} 11. c5 {[%clk
0:02:52.8]} 11... Nbd7 {[%clk 0:02:50.8]} 12. a3 {[%clk 0:02:50.4]} 12... Ne4
{[%clk 0:02:42.8]} 13. Bf4 {[%clk 0:02:47.2]} 13... f6 {[%clk 0:02:36.3]} 14.
Nc3 {[%clk 0:02:37.1]} 14... Nxc3 {[%clk 0:02:31.2]} 15. Qxc3 {[%clk 0:02:37]}
15... b4 {[%clk 0:02:31.5]} 16. axb4 {[%clk 0:02:33.2]} 16... Bxe2 {[%clk
0:02:31.1]} 17. Re1 {[%clk 0:02:33.7]} 17... Bxf3 {[%clk 0:02:28.1]} 18. Bxf3
{[%clk 0:02:34.6]} 18... e5 {[%clk 0:02:26]} 19. b5 {[%clk 0:01:34.4]} 19...
exf4 {[%clk 0:02:13.5]} 20. bxc6 {[%clk 0:01:33.8]} 20... Nb8 {[%clk 0:02:10.9]}
21. c7 {[%clk 0:01:33.7]} 21... Qxc7 {[%clk 0:02:06.3]} 22. Bxd5+ {[%clk
0:01:32.9]} 22... Kh8 {[%clk 0:02:06.4]} 23. Bxa8 {[%clk 0:01:33]} 23... fxg3
{[%clk 0:02:06.4]} 24. hxg3 {[%clk 0:01:32.3]} 24... f5 {[%clk 0:02:03]} 25. Qa5
{[%clk 0:01:22.1]} 25... Qc8 {[%clk 0:00:58.7]} 26. Rxe7 {[%clk 0:00:48]} 26...
f4 {[%clk 0:00:58.4]} 27. Qc7 {[%clk 0:00:47]} 27... Qg4 {[%clk 0:00:55.4]} 28.
Qxf4 {[%clk 0:00:45.4]} 28... Qc8 {[%clk 0:00:49.7]} 29. Rf7 {[%clk 0:00:39.7]}
29... Rg8 {[%clk 0:00:48.9]} 30. Bb7 {[%clk 0:00:38.7]} 30... Qd8 {[%clk
0:00:44.4]} 31. Rxa7 {[%clk 0:00:34.7]} 31... Nd7 {[%clk 0:00:42]} 32. Bd5
{[%clk 0:00:31.8]} 32... Nf6 {[%clk 0:00:39]} 33. Rxf6 {[%clk 0:00:31.7]} 33...
Qxd5 {[%clk 0:00:35.2]} 34. Rf8 {[%clk 0:00:32]} 1-0

[Event "Early-Titled-Tuesday-Blitz-October-10-2023"]
[Site "Chess.com"]
[Date "2023.10.10"]
[Round "5"]
[White "FischerKasparow"]
[Black "NovikovaGalina"]
[Result "0-1"]
[WhiteElo "2117"]
[BlackElo "2436"]
[TimeControl "180+1"]
[EndTime "8:53:23 PDT"]
[Termination "NovikovaGalina won by resignation"]

1. e4 {[%clk 0:02:53.5]} 1... e6 {[%clk 0:03:00.1]} 2. d4 {[%clk 0:02:50.9]}
2... d5 {[%clk 0:03:01]} 3. e5 {[%clk 0:02:49.6]} 3... c5 {[%clk 0:03:00.6]} 4.
c3 {[%clk 0:02:49.7]} 4... Nc6 {[%clk 0:03:01.2]} 5. Nf3 {[%clk 0:02:49.7]} 5...
Bd7 {[%clk 0:03:02.1]} 6. Be2 {[%clk 0:02:49]} 6... Qc7 {[%clk 0:03:02.6]} 7.
O-O {[%clk 0:02:48.8]} 7... f6 {[%clk 0:03:03.2]} 8. exf6 {[%clk 0:02:47.2]}
8... Nxf6 {[%clk 0:03:04.1]} 9. Bg5 {[%clk 0:02:40.9]} 9... Bd6 {[%clk
0:03:02.9]} 10. Nbd2 {[%clk 0:02:36.7]} 10... O-O {[%clk 0:03:02.1]} 11. dxc5
{[%clk 0:02:35.4]} 11... Bxc5 {[%clk 0:03:03]} 12. Nb3 {[%clk 0:02:35.5]} 12...
Bd6 {[%clk 0:03:02.8]} 13. Nbd4 {[%clk 0:02:28.6]} 13... a6 {[%clk 0:03:02.6]}
14. Nxc6 {[%clk 0:02:21.6]} 14... bxc6 {[%clk 0:02:54.3]} 15. Bh4 {[%clk
0:02:17.6]} 15... e5 {[%clk 0:02:53.2]} 16. Bg3 {[%clk 0:02:07.9]} 16... a5
{[%clk 0:02:43.9]} 17. Qc2 {[%clk 0:02:02]} 17... Ne4 {[%clk 0:02:34.7]} 18. Bd3
{[%clk 0:01:55.2]} 18... Bf5 {[%clk 0:02:31.2]} 19. Nh4 {[%clk 0:01:49.5]} 19...
Nxg3 {[%clk 0:02:27.3]} 20. fxg3 {[%clk 0:01:35.5]} 20... Bxd3 {[%clk 0:02:27]}
21. Qxd3 {[%clk 0:01:32.4]} 21... e4 {[%clk 0:02:21.6]} 22. Qd2 {[%clk
0:01:23.5]} 22... Qd7 {[%clk 0:02:09.6]} 23. Kh1 {[%clk 0:01:22.4]} 23... a4
{[%clk 0:02:07.6]} 24. Qg5 {[%clk 0:01:15.4]} 24... Qe7 {[%clk 0:01:59.8]} 25.
Qg4 {[%clk 0:01:00.7]} 25... Be5 {[%clk 0:01:32.3]} 26. Nf5 {[%clk 0:00:50]}
26... Qe6 {[%clk 0:01:30.6]} 27. Ne3 {[%clk 0:00:43.7]} 27... Qxg4 {[%clk
0:01:16.1]} 28. Nxg4 {[%clk 0:00:44.6]} 28... Bd6 {[%clk 0:01:16.6]} 29. a3
{[%clk 0:00:44.5]} 29... Rab8 {[%clk 0:01:16.2]} 30. Rab1 {[%clk 0:00:44]} 30...
Rxf1+ {[%clk 0:01:15.2]} 31. Rxf1 {[%clk 0:00:43]} 31... Rxb2 {[%clk 0:01:15.7]}
32. Ne3 {[%clk 0:00:41.3]} 32... Bxa3 {[%clk 0:01:01.7]} 33. Nf5 {[%clk
0:00:36.2]} 33... Bf8 {[%clk 0:00:57.6]} 34. Nd4 {[%clk 0:00:30.6]} 34... a3
{[%clk 0:00:53.3]} 35. Ne6 {[%clk 0:00:24.8]} 35... Bd6 {[%clk 0:00:50.8]} 36.
Nd4 {[%clk 0:00:21.8]} 36... a2 {[%clk 0:00:49.1]} 0-1

[Event "Early-Titled-Tuesday-Blitz-October-10-2023"]
[Site "Chess.com"]
[Date "2023.10.10"]
[Round "5"]
[White "ivana_999"]
[Black "Willi_Skibbe"]
[Result "1-0"]
[WhiteElo "2058"]
[BlackElo "2216"]
[TimeControl "180+1"]
[EndTime "8:53:23 PDT"]
[Termination "ivana_999 won on time"]

1. d4 {[%clk 0:03:00.9]} 1... Nf6 {[%clk 0:02:57.6]} 2. c4 {[%clk 0:03:01.4]}
2... g6 {[%clk 0:02:47.9]} 3. Nc3 {[%clk 0:03:00.7]} 3... Bg7 {[%clk 0:02:34.7]}
4. e4 {[%clk 0:02:59.5]} 4... d6 {[%clk 0:02:32]} 5. f4 {[%clk 0:02:59.2]} 5...
O-O {[%clk 0:02:27.1]} 6. Nf3 {[%clk 0:02:58.8]} 6... Nc6 {[%clk 0:02:12.4]} 7.
d5 {[%clk 0:02:53.8]} 7... Nb8 {[%clk 0:01:54.7]} 8. Be2 {[%clk 0:02:49.4]} 8...
e5 {[%clk 0:01:54]} 9. fxe5 {[%clk 0:02:47.6]} 9... dxe5 {[%clk 0:01:52.2]} 10.
O-O {[%clk 0:02:42.9]} 10... Nbd7 {[%clk 0:01:35.9]} 11. Be3 {[%clk 0:02:41.6]}
11... b6 {[%clk 0:01:33.9]} 12. b4 {[%clk 0:02:40.9]} 12... Qe7 {[%clk
0:01:32.9]} 13. a3 {[%clk 0:02:31.1]} 13... a5 {[%clk 0:01:29.7]} 14. Nb5 {[%clk
0:02:16]} 14... Ne8 {[%clk 0:01:22.4]} 15. Bg5 {[%clk 0:02:00.8]} 15... f6
{[%clk 0:01:10]} 16. d6 {[%clk 0:01:59.8]} 16... Qf7 {[%clk 0:00:52.9]} 17. Be3
{[%clk 0:01:44.8]} 17... cxd6 {[%clk 0:00:27.7]} 18. Nxd6 {[%clk 0:01:36.7]}
18... Nxd6 {[%clk 0:00:19.5]} 19. Qxd6 {[%clk 0:01:37.6]} 19... Bb7 {[%clk
0:00:20]} 20. Ng5 {[%clk 0:01:19.1]} 20... Qe8 {[%clk 0:00:10.2]} 21. Ne6 {[%clk
0:01:14]} 21... Rf7 {[%clk 0:00:10.5]} 22. Nc7 {[%clk 0:01:14.1]} 22... Qf8
{[%clk 0:00:09.2]} 23. Qxf8+ {[%clk 0:00:56.3]} 23... Raxf8 {[%clk 0:00:10.1]}
24. bxa5 {[%clk 0:00:49.8]} 24... bxa5 {[%clk 0:00:04.8]} 25. Nd5 {[%clk
0:00:49.9]} 25... f5 {[%clk 0:00:01.8]} 26. Rab1 {[%clk 0:00:42.5]} 26... fxe4
{[%clk 0:00:02]} 27. Rxf7 {[%clk 0:00:40.4]} 27... Bxd5 {[%clk 0:00:01.2]} 28.
Rxf8+ {[%clk 0:00:40]} 28... Bxf8 {[%clk 0:00:01.6]} 29. cxd5 {[%clk 0:00:40.9]}
1-0

[Event "Early-Titled-Tuesday-Blitz-October-10-2023"]
[Site "Chess.com"]
[Date "2023.10.10"]
[Round "5"]
[White "abelmat"]
[Black "KejJaj"]
[Result "1-0"]
[WhiteElo "1948"]
[BlackElo "2170"]
[TimeControl "180+1"]
[EndTime "8:53:23 PDT"]
[Termination "abelmat won by resignation"]

1. d4 {[%clk 0:02:59.3]} 1... f5 {[%clk 0:02:59.7]} 2. c4 {[%clk 0:02:57.9]}
2... Nf6 {[%clk 0:03:00]} 3. Bg5 {[%clk 0:02:57.4]} 3... e6 {[%clk 0:02:59.1]}
4. Nc3 {[%clk 0:02:56.9]} 4... h6 {[%clk 0:02:58.6]} 5. Bxf6 {[%clk 0:02:55.2]}
5... Qxf6 {[%clk 0:02:57.9]} 6. e4 {[%clk 0:02:54.6]} 6... fxe4 {[%clk
0:02:57.7]} 7. Nxe4 {[%clk 0:02:54.6]} 7... Qg6 {[%clk 0:02:54]} 8. Nc3 {[%clk
0:02:43.1]} 8... Bb4 {[%clk 0:02:49.4]} 9. Nf3 {[%clk 0:02:38.4]} 9... b6 {[%clk
0:02:37.8]} 10. Bd3 {[%clk 0:02:14.6]} 10... Qh5 {[%clk 0:02:29.3]} 11. O-O
{[%clk 0:02:06.5]} 11... Nc6 {[%clk 0:02:20.4]} 12. d5 {[%clk 0:02:04.3]} 12...
Bxc3 {[%clk 0:02:12.7]} 13. bxc3 {[%clk 0:01:56]} 13... Ne7 {[%clk 0:02:03.4]}
14. Be4 {[%clk 0:01:43.8]} 14... Rb8 {[%clk 0:01:53.4]} 15. d6 {[%clk
0:01:40.3]} 15... Nc6 {[%clk 0:01:38.3]} 16. dxc7 {[%clk 0:01:35.3]} 16... Ra8
{[%clk 0:01:37.2]} 17. Bxc6 {[%clk 0:01:34.5]} 17... dxc6 {[%clk 0:01:12.7]} 18.
Qd8+ {[%clk 0:01:33.1]} 18... Kf7 {[%clk 0:01:13.4]} 19. Qxh8 {[%clk 0:01:20.7]}
19... Bb7 {[%clk 0:01:13.6]} 20. Qh7 {[%clk 0:01:18.8]} 20... c5 {[%clk
0:00:57.7]} 21. Qd3 {[%clk 0:01:15.1]} 21... Bc6 {[%clk 0:00:50.2]} 22. Rae1
{[%clk 0:01:09.9]} 22... Re8 {[%clk 0:00:38.4]} 23. Ne5+ {[%clk 0:01:09.5]}
23... Kg8 {[%clk 0:00:34.8]} 24. Nxc6 {[%clk 0:01:08.4]} 24... Qg4 {[%clk
0:00:20.7]} 25. Nd8 {[%clk 0:01:05]} 25... e5 {[%clk 0:00:14.8]} 26. Qd5+ {[%clk
0:01:02.7]} 26... Kh8 {[%clk 0:00:13.4]} 27. Qf7 {[%clk 0:01:01]} 27... Rg8
{[%clk 0:00:11.6]} 28. Rxe5 {[%clk 0:00:59.3]} 28... Qc8 {[%clk 0:00:10.8]} 29.
Re8 {[%clk 0:00:57.3]} 29... Rxe8 {[%clk 0:00:09.5]} 30. Qxe8+ {[%clk
0:00:57.3]} 30... Kh7 {[%clk 0:00:10.4]} 31. Qe4+ {[%clk 0:00:56.7]} 31... Kh8
{[%clk 0:00:10]} 32. Ne6 {[%clk 0:00:55.1]} 32... Kg8 {[%clk 0:00:10.7]} 33. Qd5
{[%clk 0:00:54.6]} 33... Kh8 {[%clk 0:00:10.3]} 34. Qd8+ {[%clk 0:00:53.6]} 1-0

[Event "Early-Titled-Tuesday-Blitz-October-10-2023"]
[Site "Chess.com"]
[Date "2023.10.10"]
[Round "5"]
[White "boasovietica"]
[Black "HanSchut"]
[Result "1-0"]
[WhiteElo "2524"]
[BlackElo "2350"]
[TimeControl "180+1"]
[EndTime "8:53:27 PDT"]
[Termination "boasovietica won on time"]

1. e4 {[%clk 0:02:58.5]} 1... c5 {[%clk 0:02:58.9]} 2. Nf3 {[%clk 0:02:58.1]}
2... d6 {[%clk 0:02:59.2]} 3. d4 {[%clk 0:02:58.1]} 3... cxd4 {[%clk 0:03:00.1]}
4. Nxd4 {[%clk 0:02:58.7]} 4... Nf6 {[%clk 0:03:00.6]} 5. Nc3 {[%clk 0:02:59.1]}
5... a6 {[%clk 0:03:01]} 6. Be3 {[%clk 0:02:58]} 6... e5 {[%clk 0:03:01.3]} 7.
Nf3 {[%clk 0:02:57.2]} 7... Qc7 {[%clk 0:03:00.3]} 8. a4 {[%clk 0:02:55.8]} 8...
Be6 {[%clk 0:03:00]} 9. a5 {[%clk 0:02:54.3]} 9... Nbd7 {[%clk 0:02:57.2]} 10.
Nd5 {[%clk 0:02:41.4]} 10... Nxd5 {[%clk 0:02:45.1]} 11. exd5 {[%clk 0:02:41.2]}
11... Bg4 {[%clk 0:02:43.9]} 12. c4 {[%clk 0:02:28.9]} 12... e4 {[%clk
0:02:20.1]} 13. h3 {[%clk 0:02:29.1]} 13... exf3 {[%clk 0:02:20.3]} 14. hxg4
{[%clk 0:02:24.6]} 14... fxg2 {[%clk 0:02:19.1]} 15. Bxg2 {[%clk 0:02:23.3]}
15... Qxc4 {[%clk 0:02:15.4]} 16. Rc1 {[%clk 0:02:16.5]} 16... Qb5 {[%clk
0:02:07.2]} 17. Rh3 {[%clk 0:02:03.3]} 17... Ne5 {[%clk 0:01:56.4]} 18. Bd4
{[%clk 0:01:42.3]} 18... Be7 {[%clk 0:01:14.3]} 19. f4 {[%clk 0:01:34.2]} 19...
Ng6 {[%clk 0:00:50.8]} 20. Qd2 {[%clk 0:01:09.1]} 20... Bh4+ {[%clk 0:00:29.5]}
21. Kd1 {[%clk 0:01:07.8]} 21... O-O {[%clk 0:00:08.9]} 22. f5 {[%clk
0:01:01.3]} 22... h6 {[%clk 0:00:06.2]} 23. fxg6 {[%clk 0:00:53.7]} 23... Bg5
{[%clk 0:00:07.1]} 24. Be3 {[%clk 0:00:26.1]} 24... Bxe3 {[%clk 0:00:02.9]} 25.
Qxe3 {[%clk 0:00:24.5]} 1-0

[Event "Early-Titled-Tuesday-Blitz-October-10-2023"]
[Site "Chess.com"]
[Date "2023.10.10"]
[Round "5"]
[White "lamomiajunior"]
[Black "Eloist"]
[Result "1-0"]
[WhiteElo "2712"]
[BlackElo "2432"]
[TimeControl "180+1"]
[EndTime "8:53:28 PDT"]
[Termination "lamomiajunior won on time"]

1. d4 {[%clk 0:03:00.9]} 1... e6 {[%clk 0:03:00.1]} 2. c4 {[%clk 0:03:01.5]}
2... Nf6 {[%clk 0:03:00.3]} 3. Nc3 {[%clk 0:03:01.5]} 3... Bb4 {[%clk
0:03:00.3]} 4. e3 {[%clk 0:03:02.1]} 4... c5 {[%clk 0:02:58.7]} 5. Ne2 {[%clk
0:03:00.6]} 5... d5 {[%clk 0:02:55.3]} 6. a3 {[%clk 0:02:57]} 6... Ba5 {[%clk
0:02:39.6]} 7. cxd5 {[%clk 0:02:44.8]} 7... Nxd5 {[%clk 0:02:33.8]} 8. dxc5
{[%clk 0:02:42.9]} 8... Nxc3 {[%clk 0:02:28.6]} 9. Qxd8+ {[%clk 0:02:43.6]} 9...
Kxd8 {[%clk 0:02:27.2]} 10. Nxc3 {[%clk 0:02:43.8]} 10... Bxc3+ {[%clk
0:02:26.4]} 11. bxc3 {[%clk 0:02:44.7]} 11... Bd7 {[%clk 0:02:20.6]} 12. e4
{[%clk 0:02:44.6]} 12... Bc6 {[%clk 0:02:19]} 13. f3 {[%clk 0:02:44.7]} 13...
Nd7 {[%clk 0:02:15.6]} 14. Be3 {[%clk 0:02:45.1]} 14... Ke7 {[%clk 0:02:08.7]}
15. Be2 {[%clk 0:02:33.8]} 15... Rac8 {[%clk 0:02:02.2]} 16. Kf2 {[%clk
0:02:34.2]} 16... Rc7 {[%clk 0:01:58.2]} 17. Rab1 {[%clk 0:02:31]} 17... Rd8
{[%clk 0:01:41.3]} 18. Rhd1 {[%clk 0:02:30.1]} 18... Ne5 {[%clk 0:01:37.7]} 19.
Rxd8 {[%clk 0:02:27.8]} 19... Kxd8 {[%clk 0:01:37.4]} 20. Bd4 {[%clk 0:02:27.7]}
20... f6 {[%clk 0:01:31.7]} 21. h4 {[%clk 0:02:20.1]} 21... Ke7 {[%clk
0:01:27.5]} 22. g4 {[%clk 0:02:18.9]} 22... Nd7 {[%clk 0:01:22.1]} 23. g5 {[%clk
0:02:14.4]} 23... e5 {[%clk 0:01:20.4]} 24. Be3 {[%clk 0:02:13.7]} 24... Nf8
{[%clk 0:01:15.7]} 25. h5 {[%clk 0:02:11]} 25... Ne6 {[%clk 0:01:08.2]} 26.
gxf6+ {[%clk 0:02:09.1]} 26... Kxf6 {[%clk 0:01:00.7]} 27. Bc4 {[%clk
0:02:08.6]} 27... Rd7 {[%clk 0:00:57.4]} 28. Bd5 {[%clk 0:01:46]} 28... Rc7
{[%clk 0:00:32]} 29. Bxc6 {[%clk 0:01:43.8]} 29... Rxc6 {[%clk 0:00:19.8]} 30.
Rxb7 {[%clk 0:01:43.9]} 30... Ra6 {[%clk 0:00:18.3]} 31. Rb3 {[%clk 0:01:33.6]}
31... Rc6 {[%clk 0:00:15.5]} 32. Rb5 {[%clk 0:01:34.1]} 32... Nc7 {[%clk
0:00:13.7]} 33. Ra5 {[%clk 0:01:34]} 33... a6 {[%clk 0:00:13.4]} 34. Ke2 {[%clk
0:01:33.2]} 34... Nb5 {[%clk 0:00:13.1]} 35. Kd3 {[%clk 0:01:32.7]} 35... g6
{[%clk 0:00:12.1]} 36. hxg6 {[%clk 0:01:32.3]} 36... Kxg6 {[%clk 0:00:12.4]} 37.
Kc4 {[%clk 0:01:30.6]} 37... Nc7 {[%clk 0:00:11.5]} 38. Ra4 {[%clk 0:01:29.8]}
38... h5 {[%clk 0:00:11.3]} 39. Rb4 {[%clk 0:01:29.4]} 39... h4 {[%clk
0:00:10.8]} 40. Rb6 {[%clk 0:01:27.6]} 40... Rf6 {[%clk 0:00:06.9]} 41. c6
{[%clk 0:01:23.9]} 41... h3 {[%clk 0:00:06.5]} 42. Rb1 {[%clk 0:01:22.1]} 42...
Rf7 {[%clk 0:00:04.9]} 43. Bb6 {[%clk 0:01:19.3]} 43... Na8 {[%clk 0:00:04]} 44.
Bd8 {[%clk 0:01:17.8]} 44... Rxf3 {[%clk 0:00:03.7]} 45. Rh1 {[%clk 0:01:18.2]}
45... Kh5 {[%clk 0:00:02.7]} 46. c7 {[%clk 0:01:18]} 46... Nxc7 {[%clk
0:00:02.2]} 47. Bxc7 {[%clk 0:01:18.9]} 47... Re3 {[%clk 0:00:01.1]} 48. Kd5
{[%clk 0:01:17.7]} 1-0

[Event "Early-Titled-Tuesday-Blitz-October-10-2023"]
[Site "Chess.com"]
[Date "2023.10.10"]
[Round "5"]
[White "JSlaby"]
[Black "sergiochess83"]
[Result "0-1"]
[WhiteElo "2579"]
[BlackElo "2881"]
[TimeControl "180+1"]
[EndTime "8:53:29 PDT"]
[Termination "sergiochess83 won by resignation"]

1. e4 {[%clk 0:03:00.9]} 1... c5 {[%clk 0:02:47.4]} 2. Nc3 {[%clk 0:02:59.4]}
2... e6 {[%clk 0:02:45.4]} 3. f4 {[%clk 0:02:58.4]} 3... d5 {[%clk 0:02:43]} 4.
Nf3 {[%clk 0:02:58.2]} 4... dxe4 {[%clk 0:02:39.4]} 5. Nxe4 {[%clk 0:02:57.7]}
5... Nc6 {[%clk 0:02:40]} 6. Bb5 {[%clk 0:02:56.8]} 6... Bd7 {[%clk 0:02:36.2]}
7. O-O {[%clk 0:02:55.8]} 7... a6 {[%clk 0:02:34.8]} 8. Bxc6 {[%clk 0:02:53.4]}
8... Bxc6 {[%clk 0:02:34.9]} 9. Qe2 {[%clk 0:02:53]} 9... Nf6 {[%clk 0:02:33.3]}
10. Nxf6+ {[%clk 0:02:48.1]} 10... gxf6 {[%clk 0:02:31.3]} 11. d3 {[%clk
0:02:42]} 11... Qd5 {[%clk 0:02:19.4]} 12. Be3 {[%clk 0:02:41]} 12... O-O-O
{[%clk 0:02:18.6]} 13. Rad1 {[%clk 0:02:31.9]} 13... Rg8 {[%clk 0:02:16.4]} 14.
c4 {[%clk 0:02:30.9]} 14... Qh5 {[%clk 0:02:12]} 15. a3 {[%clk 0:02:23.1]} 15...
Bd6 {[%clk 0:01:51.7]} 16. Rf2 {[%clk 0:02:19.4]} 16... e5 {[%clk 0:01:38.2]}
17. fxe5 {[%clk 0:02:08.8]} 17... fxe5 {[%clk 0:01:39.1]} 18. b4 {[%clk
0:01:44.7]} 18... e4 {[%clk 0:01:36.5]} 19. dxe4 {[%clk 0:01:40.3]} 19... Bxh2+
{[%clk 0:01:36.3]} 20. Kf1 {[%clk 0:01:29.7]} 20... Bg3 {[%clk 0:01:25.1]} 21.
Rxd8+ {[%clk 0:01:24.9]} 21... Rxd8 {[%clk 0:01:24.5]} 22. Bxc5 {[%clk
0:01:20.6]} 22... Bxf2 {[%clk 0:01:05.4]} 23. Kxf2 {[%clk 0:01:21.5]} 23... Qg4
{[%clk 0:00:58.6]} 24. e5 {[%clk 0:01:05.7]} 24... Rg8 {[%clk 0:00:47.3]} 25.
Ne1 {[%clk 0:00:56]} 25... Qxe2+ {[%clk 0:00:32.8]} 26. Kxe2 {[%clk 0:00:56.9]}
26... Bxg2 {[%clk 0:00:33]} 27. Be7 {[%clk 0:00:52.2]} 27... h5 {[%clk
0:00:31.3]} 28. a4 {[%clk 0:00:49.7]} 28... Bh3 {[%clk 0:00:30]} 29. b5 {[%clk
0:00:48.1]} 29... Be6 {[%clk 0:00:29.4]} 30. Kd3 {[%clk 0:00:46.1]} 30... Rg4
{[%clk 0:00:28]} 31. c5 {[%clk 0:00:43.9]} 31... axb5 {[%clk 0:00:26.6]} 32.
axb5 {[%clk 0:00:44.8]} 32... Bc4+ {[%clk 0:00:27]} 33. Ke3 {[%clk 0:00:44.5]}
33... Bxb5 {[%clk 0:00:27.9]} 34. Nf3 {[%clk 0:00:44.4]} 34... Bc6 {[%clk
0:00:26]} 35. Nd4 {[%clk 0:00:44.7]} 35... h4 {[%clk 0:00:21.9]} 36. e6 {[%clk
0:00:38.5]} 36... fxe6 {[%clk 0:00:21.2]} 37. Bd6 {[%clk 0:00:38.8]} 37... Bd5
{[%clk 0:00:18.6]} 0-1

[Event "Early-Titled-Tuesday-Blitz-October-10-2023"]
[Site "Chess.com"]
[Date "2023.10.10"]
[Round "5"]
[White "gueraumasague"]
[Black "Efremov_Vlad"]
[Result "0-1"]
[WhiteElo "2517"]
[BlackElo "2345"]
[TimeControl "180+1"]
[EndTime "8:53:29 PDT"]
[Termination "Efremov_Vlad won by resignation"]

1. e4 {[%clk 0:03:00.9]} 1... c5 {[%clk 0:02:58.6]} 2. Nc3 {[%clk 0:03:01.8]}
2... e6 {[%clk 0:02:57]} 3. f4 {[%clk 0:03:01.7]} 3... d5 {[%clk 0:02:56.5]} 4.
Bb5+ {[%clk 0:03:01.6]} 4... Bd7 {[%clk 0:02:56.5]} 5. Bxd7+ {[%clk 0:03:01.6]}
5... Qxd7 {[%clk 0:02:57.4]} 6. Nf3 {[%clk 0:03:02]} 6... Nc6 {[%clk 0:02:57.7]}
7. d3 {[%clk 0:02:58.3]} 7... Nge7 {[%clk 0:02:54.7]} 8. O-O {[%clk 0:02:58.1]}
8... g6 {[%clk 0:02:54.9]} 9. Qe1 {[%clk 0:02:51.7]} 9... Bg7 {[%clk 0:02:54]}
10. Nd1 {[%clk 0:02:44.7]} 10... O-O {[%clk 0:02:52.7]} 11. Ne3 {[%clk
0:02:43.8]} 11... f5 {[%clk 0:02:52.5]} 12. e5 {[%clk 0:02:40.4]} 12... b5
{[%clk 0:02:47.5]} 13. Kh1 {[%clk 0:02:36.5]} 13... a5 {[%clk 0:02:46.1]} 14. c3
{[%clk 0:02:32.5]} 14... b4 {[%clk 0:02:45.2]} 15. d4 {[%clk 0:02:32.4]} 15...
cxd4 {[%clk 0:02:39.7]} 16. cxd4 {[%clk 0:02:32.5]} 16... Rfc8 {[%clk 0:02:32]}
17. Qf2 {[%clk 0:02:05.1]} 17... Nd8 {[%clk 0:02:22.7]} 18. Bd2 {[%clk 0:02:01]}
18... Qb5 {[%clk 0:02:21.2]} 19. h3 {[%clk 0:02:00]} 19... Bf8 {[%clk
0:02:17.5]} 20. g4 {[%clk 0:01:59.8]} 20... Qd3 {[%clk 0:02:14.7]} 21. Kh2
{[%clk 0:01:51.3]} 21... Rc7 {[%clk 0:02:02.9]} 22. Rad1 {[%clk 0:01:38.6]}
22... Qb5 {[%clk 0:01:59.3]} 23. gxf5 {[%clk 0:01:34.8]} 23... exf5 {[%clk
0:01:57.3]} 24. h4 {[%clk 0:01:34.4]} 24... Bh6 {[%clk 0:01:53.2]} 25. Qg3
{[%clk 0:01:19]} 25... Ne6 {[%clk 0:01:49.1]} 26. Ng2 {[%clk 0:01:18.9]} 26...
Ng7 {[%clk 0:01:45.5]} 27. Ng5 {[%clk 0:01:13.5]} 27... Bxg5 {[%clk 0:01:42.6]}
28. fxg5 {[%clk 0:01:09.1]} 28... Ne6 {[%clk 0:01:40.1]} 29. Be3 {[%clk
0:01:06.4]} 29... Rac8 {[%clk 0:01:35.7]} 30. Rf2 {[%clk 0:01:06.9]} 30... Rc2
{[%clk 0:01:31.8]} 31. h5 {[%clk 0:01:00.7]} 31... f4 {[%clk 0:01:16.7]} 32.
Nxf4 {[%clk 0:00:30.2]} 32... Nf5 {[%clk 0:01:16.2]} 33. Qf3 {[%clk 0:00:29.2]}
33... Nxg5 {[%clk 0:01:09.2]} 34. Qxd5+ {[%clk 0:00:13.9]} 34... Qxd5 {[%clk
0:01:08.9]} 35. Nxd5 {[%clk 0:00:14.5]} 35... Nxe3 {[%clk 0:01:09.5]} 36. Ne7+
{[%clk 0:00:09]} 36... Kg7 {[%clk 0:01:07.8]} 37. Kg3 {[%clk 0:00:09.6]} 37...
Ne4+ {[%clk 0:01:06.9]} 38. Kf4 {[%clk 0:00:09.1]} 38... Nxf2 {[%clk 0:01:03.8]}
39. Rg1 {[%clk 0:00:07.4]} 39... Rf8+ {[%clk 0:01:03.5]} 40. Kxe3 {[%clk
0:00:07.3]} 40... Nh3 {[%clk 0:00:58.9]} 41. hxg6 {[%clk 0:00:07.3]} 41... Nxg1
{[%clk 0:00:58.7]} 0-1

[Event "Early-Titled-Tuesday-Blitz-October-10-2023"]
[Site "Chess.com"]
[Date "2023.10.10"]
[Round "5"]
[White "stepanosinovsky"]
[Black "QueenOfTactics90"]
[Result "0-1"]
[WhiteElo "2381"]
[BlackElo "2113"]
[TimeControl "180+1"]
[EndTime "8:53:29 PDT"]
[Termination "QueenOfTactics90 won on time"]

1. Nf3 {[%clk 0:02:44.5]} 1... c5 {[%clk 0:02:59.3]} 2. g3 {[%clk 0:02:45.4]}
2... Nc6 {[%clk 0:02:59.3]} 3. Bg2 {[%clk 0:02:46.3]} 3... g6 {[%clk 0:02:59.4]}
4. O-O {[%clk 0:02:47.2]} 4... Bg7 {[%clk 0:02:59.9]} 5. d3 {[%clk 0:02:48.1]}
5... e6 {[%clk 0:03:00.3]} 6. Nbd2 {[%clk 0:02:49]} 6... Nge7 {[%clk 0:03:00]}
7. e4 {[%clk 0:02:49.9]} 7... d5 {[%clk 0:03:00.1]} 8. exd5 {[%clk 0:02:49]}
8... exd5 {[%clk 0:03:01]} 9. Re1 {[%clk 0:02:49.6]} 9... O-O {[%clk 0:03:01.3]}
10. c4 {[%clk 0:02:46.6]} 10... d4 {[%clk 0:02:55.7]} 11. a3 {[%clk 0:02:46]}
11... h6 {[%clk 0:02:53.8]} 12. b4 {[%clk 0:02:39.2]} 12... cxb4 {[%clk
0:02:51.4]} 13. axb4 {[%clk 0:02:40.1]} 13... Nxb4 {[%clk 0:02:50.9]} 14. Nb3
{[%clk 0:02:39.2]} 14... Nec6 {[%clk 0:02:46.9]} 15. Ra4 {[%clk 0:02:15.2]}
15... Bf5 {[%clk 0:02:45.2]} 16. Ba3 {[%clk 0:01:38.3]} 16... a5 {[%clk
0:02:29.8]} 17. Nh4 {[%clk 0:01:06.5]} 17... Bd7 {[%clk 0:02:12.8]} 18. Nc5
{[%clk 0:01:05.5]} 18... b6 {[%clk 0:01:52]} 19. Bxb4 {[%clk 0:00:57]} 19...
Nxb4 {[%clk 0:01:47.5]} 20. Nxd7 {[%clk 0:00:43.3]} 20... Qxd7 {[%clk
0:01:46.7]} 21. Bxa8 {[%clk 0:00:43.5]} 21... Rxa8 {[%clk 0:01:47]} 22. Ra1
{[%clk 0:00:18.4]} 22... a4 {[%clk 0:01:35.8]} 23. Qe2 {[%clk 0:00:10.7]} 23...
Bf8 {[%clk 0:01:34]} 24. Ng2 {[%clk 0:00:06.3]} 24... a3 {[%clk 0:01:16.1]} 25.
Nf4 {[%clk 0:00:06.2]} 25... a2 {[%clk 0:01:12.4]} 26. Qe4 {[%clk 0:00:05.5]}
26... Ra3 {[%clk 0:01:06.5]} 27. Re2 {[%clk 0:00:05.5]} 27... Qa4 {[%clk
0:01:02.9]} 28. Nd5 {[%clk 0:00:03.1]} 28... Nc2 {[%clk 0:01:01.6]} 29. Nf6+
{[%clk 0:00:03.3]} 29... Kh8 {[%clk 0:00:57]} 30. Qe8 {[%clk 0:00:03.8]} 30...
Qxe8 {[%clk 0:00:50.4]} 31. Rxe8 {[%clk 0:00:02.6]} 31... Kg7 {[%clk 0:00:49.2]}
32. Nd7 {[%clk 0:00:01.9]} 32... Nxa1 {[%clk 0:00:47.7]} 0-1